bitfinex-derivatives/quotes_SOLF0:USTF0_20220108
["timestamp","ask_amount","ask_price","bid_price","bid_amount"]
[1641614035693,2.69595574,139.09,138.99,62.51758]
[1641614035994,2.69595574,139.09,138.99,63.82162426]
[1641614036294,2.69595574,139.08,138.99,62.51758]
[1641614036494,28.73904714,139.1,139.02,27.66479]
[1641614036694,4.08450953,139.08,139.02,27.66479]
[1641614036993,4.08450953,139.08,138.99,34.85279]
[1641614037193,2.69595574,139.08,138.99,34.85279]
[1641614037394,4.08450953,139.09,138.99,27.66479]
[1641614037595,18.12752246,139.1,138.99,27.66479]
[1641614037793,2.69595574,139.06,138.99,27.66479]
[1641614038595,18.12752246,139.1,139.02,27.66479]
[1641614038993,4.08470687,139.09,139.02,27.66479]
[1641614039293,2.69595574,139.06,139.02,27.66479]
[1641614039698,9.25395574,139.06,139.02,27.66479]
[1641614039895,6.558,139.06,139.02,27.66479]
[1641614040195,2.69595574,139.05,139.02,27.66479]
[1641614040696,2.69595574,139.03,139.02,27.66479]
[1641614040895,2.69595574,139.03,138.99,27.66479]
[1641614041099,2.69595574,139.0,138.99,27.66479]
[1641614041497,9.00095574,139.0,138.99,27.66479]
[1641614041697,9.00095574,139.0,138.91,53.13077529]
[1641614041895,9.00095574,139.0,138.91,8.49337529]
[1641614042596,6.305,139.0,138.96,27.66479]
[1641614042796,2.69595574,139.03,138.96,27.66479]
[1641614042997,27.66479,139.05,138.96,27.66479]
[1641614043602,2.69595574,139.02,138.96,27.66479]
[1641614043799,27.66479,139.05,138.96,27.66479]
[1641614044000,2.69595574,139.04,138.96,27.66479]
[1641614044200,27.66479,139.05,138.96,27.66479]
[1641614045102,27.66479,139.05,138.96,35.00579]
[1641614045401,2.69595574,139.04,138.96,35.00579]
[1641614045901,2.69595574,139.07,138.98,1.30404426]
[1641614046104,49.2226,139.08,138.98,1.30404426]
[1641614046302,49.2226,139.08,138.97,1.30404426]
[1641614046503,49.2226,139.08,138.98,7.18597298]
[1641614046804,49.2226,139.08,139.01,27.66479]
[1641614047003,49.2219,139.09,139.01,27.66479]
[1641614047405,2.69595574,139.05,139.01,27.66479]
[1641614048905,49.2219,139.09,139.01,27.66479]
[1641614049104,2.69595574,139.06,139.01,27.66479]
[1641614049308,49.2219,139.09,139.01,27.66479]
[1641614049504,2.69595574,139.06,139.01,27.66479]
[1641614049704,4.08496586,139.08,139.01,27.66479]
[1641614049904,3.36527068,139.08,139.01,27.66479]
[1641614050307,2.69595574,139.07,139.01,27.66479]
[1641614050705,49.2219,139.09,139.01,27.66479]
[1641614050905,2.69595574,139.05,139.01,27.66479]
[1641614051107,6.763,139.08,139.01,27.66479]
[1641614051306,10.84805565,139.08,139.01,27.66479]
[1641614051706,4.08505565,139.07,139.01,27.66479]
[1641614052605,2.69595574,139.03,139.01,27.66479]
[1641614053608,2.69595574,139.02,138.96,27.66479]
[1641614054007,6.783,139.03,138.96,27.66479]
[1641614054611,2.69595574,139.02,138.96,27.66479]
[1641614055011,2.69595574,139.02,138.96,55.32958]
[1641614055908,58.1389,139.04,138.97,1.30404426]
[1641614056108,32.7128751,139.05,138.97,1.30404426]
[1641614056310,2.69595574,139.0,138.96,55.32958]
[1641614057111,2.69595574,139.0,138.99,27.66479]
[1641614060311,2.69595574,139.0,138.96,32.7128751]
[1641614060711,2.69595574,139.0,138.97,5.0480851]
[1641614061515,7.74404084,139.0,138.96,27.66479]
[1641614062515,7.74404084,139.0,138.96,32.7128751]
[1641614063420,7.74404084,139.0,138.99,27.66479]
[1641614064419,2.69595574,139.0,138.99,27.66479]
[1641614065219,7.74404084,139.0,138.99,27.66479]
[1641614067119,7.74404084,139.0,138.97,5.0480851]
[1641614067520,7.74404084,139.0,138.98,27.66479]
[1641614068522,5.0480851,138.99,138.98,27.66479]
[1641614068924,7.74404084,138.99,138.98,27.66479]
[1641614069527,7.74404084,138.99,138.96,32.7128751]
[1641614069726,2.69595574,138.98,138.96,32.7128751]
[1641614070126,5.0480851,138.99,138.96,32.7128751]
[1641614070326,7.74404084,138.99,138.96,27.66479]
[1641614070528,5.0480851,138.99,138.96,27.66479]
[1641614070927,5.0480851,138.99,138.96,32.75179]
[1641614071128,5.0480851,138.98,138.96,32.75179]
[1641614071527,5.0480851,138.98,138.97,27.66479]
[1641614071930,5.0480851,138.99,138.97,27.66479]
[1641614072829,7.74404084,139.0,138.97,32.7128751]
[1641614076432,15.22908958,139.03,138.99,1.30404426]
[1641614076732,15.22908958,139.04,139.02,1.30404426]
[1641614076931,15.22908958,139.04,139.02,4.94]
[1641614077832,40.36308511,139.07,139.03,29.36091456]
[1641614078033,2.69595574,139.08,139.03,29.36091456]
[1641614078834,2.69595574,139.08,139.03,27.66479]
[1641614079034,3.39731953,139.07,139.03,27.66479]
[1641614079834,3.39731953,139.07,139.05,1.30404426]
[1641614080035,3.39731953,139.07,139.05,0.01220783]
[1641614080639,18.62640911,139.09,139.05,0.01220783]
[1641614080835,22.62640911,139.09,139.05,0.01220783]
[1641614081035,4.0,139.08,139.05,0.01220783]
[1641614081636,18.62640911,139.09,139.05,0.01220783]
[1641614081835,3.39731953,139.08,139.06,27.66479]
[1641614082236,7.39731953,139.08,139.06,27.66479]
[1641614082637,4.0,139.08,139.06,27.66479]
[1641614082838,15.22908958,139.09,139.06,27.66479]
[1641614083539,4.0,139.08,139.06,27.66479]
[1641614084240,19.22908958,139.09,139.06,27.66479]
[1641614084441,3.39731953,139.07,139.02,4.94]
[1641614084639,3.39731953,139.07,139.01,7.1841661]
[1641614085442,15.22908958,139.09,139.01,7.1841661]
[1641614085647,15.22908958,139.1,139.01,7.1841661]
[1641614085846,15.22908958,139.1,139.06,27.66479]
[1641614086046,4.0,139.09,139.06,27.66479]
[1641614086245,15.22908958,139.1,139.06,27.66479]
[1641614086445,15.22908958,139.11,139.06,27.66479]
[1641614086645,4.0,139.09,139.06,27.66479]
[1641614086845,4.0,139.1,139.06,27.66479]
[1641614087250,4.0,139.09,139.06,27.66479]
[1641614090752,15.22908958,139.11,139.06,27.66479]
[1641614090953,4.0,139.09,139.06,27.66479]
[1641614092453,4.0,139.09,139.03,48.8352]
[1641614092653,4.0,139.09,139.01,7.1841661]
[1641614093556,15.22908958,139.11,139.01,7.1841661]
[1641614093754,4.0,139.07,139.06,27.66479]
[1641614093954,8.938,139.07,139.06,27.66479]
[1641614094355,4.938,139.07,139.06,27.66479]
[1641614094656,12.938,139.07,139.04,27.66479]
[1641614094854,4.0,139.06,138.99,47.288]
[1641614095055,4.0,139.01,138.97,15.22908958]
[1641614095354,10.848,139.01,138.97,15.22908958]
[1641614095654,6.848,139.01,138.98,27.66479]
[1641614096856,6.848,139.01,138.96,1.69110225]
[1641614097257,6.848,139.01,138.95,7.18726417]
[1641614097758,6.848,139.01,138.98,27.66479]
[1641614097960,50.9521,139.04,138.98,27.66479]
[1641614098359,50.9521,139.04,138.96,1.69173237]
[1641614099662,15.22908958,139.07,138.98,7.1857148]
[1641614099861,27.66479,139.05,138.98,34.8505048]
[1641614100661,27.66479,139.05,138.99,1.69173237]
[1641614101468,27.66479,139.05,138.98,34.8505048]
[1641614101765,4.0,139.04,138.98,34.8505048]
[1641614102866,4.0,139.04,138.99,1.69363158]
[1641614104365,27.66479,139.05,138.99,1.69363158]
[1641614104766,4.0,139.04,138.99,1.69363158]
[1641614104965,27.66479,139.05,138.99,1.69363158]
[1641614105166,4.0,139.04,138.99,1.69363158]
[1641614106570,48.7058,139.07,138.99,1.69363158]
[1641614106770,27.66479,139.06,138.99,29.35842158]
[1641614106969,27.66479,139.06,139.0,15.22908958]
[1641614107670,48.7058,139.07,139.0,15.22908958]
[1641614108270,52.7058,139.07,139.0,15.22908958]
[1641614108471,48.7058,139.07,139.0,20.07408958]
[1641614108671,15.22908958,139.1,139.02,7.18365001]
[1641614108871,15.22908958,139.1,139.04,27.66479]
[1641614109073,94.20787958,139.11,139.04,32.45279]
[1641614109608,4.0,139.09,139.04,32.45279]
[1641614110371,4.0,139.09,139.05,1.69363158]
[1641614111576,3.39220226,139.08,139.04,32.45279]
[1641614112277,3.39220226,139.08,139.04,27.66479]
[1641614116580,4.0,139.09,139.04,27.66479]
[1641614117079,4.0,139.1,139.04,27.66479]
[1641614118180,94.20787958,139.11,139.04,27.66479]
[1641614118581,3.39083156,139.09,139.04,27.66479]
[1641614118784,3.39083156,139.09,139.02,7.18365001]
[1641614119184,3.39083156,139.09,139.04,27.66479]
[1641614119385,3.39083156,139.1,139.04,27.66479]
[1641614120488,4.0,139.09,139.04,27.66479]
[1641614122387,4.0,139.09,139.02,7.18365001]
[1641614123092,4.0,139.08,139.02,7.18365001]
[1641614123288,4.0,139.08,139.04,27.66479]
[1641614123890,7.61,139.09,139.04,27.66479]
[1641614124388,4.0,139.08,139.04,27.66479]
[1641614126591,94.20787958,139.11,139.04,27.66479]
[1641614127193,4.0,139.09,139.04,27.66479]
[1641614127895,4.0,139.08,139.04,27.66479]
[1641614128096,18.62067705,139.1,139.04,27.66479]
[1641614128298,3.39158747,139.08,139.04,27.66479]
[1641614130097,3.39158747,139.1,139.05,1.69627432]
[1641614131399,3.39158747,139.1,139.04,27.66479]
[1641614132000,3.39158747,139.1,139.02,7.18365001]
[1641614132400,4.0,139.09,139.02,7.18365001]
[1641614132799,18.62067705,139.1,139.02,7.18365001]
[1641614133000,3.39158747,139.08,139.03,1.69669099]
[1641614133398,3.39158747,139.08,139.04,27.66479]
[1641614134203,19.22908958,139.09,139.04,27.66479]
[1641614135002,4.0,139.07,139.04,27.66479]
[1641614135206,4.0,139.05,139.01,15.22908958]
[1641614135404,27.66479,139.06,139.01,15.22908958]
[1641614135803,27.66479,139.06,138.99,24.85488351]
[1641614136806,4.0,139.04,138.99,24.85488351]
[1641614137105,5.09752766,139.03,139.01,5.09752766]
[1641614138107,4.0,139.02,139.0,5.09752766]
[1641614138308,4.0,139.01,138.98,1.6984969]
[1641614138507,4.0,138.99,138.98,1.6984969]
[1641614138709,10.66,138.99,138.98,9.69e-05]
[1641614138909,10.66,138.99,138.97,15.22908958]
[1641614139111,10.66,138.99,138.95,15.22908958]
[1641614139312,31.66479,138.98,138.95,15.22908958]
[1641614139509,6.66,138.99,138.95,15.22908958]
[1641614139911,54.3715,139.02,138.95,15.22908958]
[1641614140409,54.3715,139.02,138.94,22.41712868]
[1641614140611,46.20218218,139.02,138.94,22.41712868]
[1641614141213,46.20218218,139.02,138.95,15.22908958]
[1641614141414,46.20218218,139.02,138.96,27.66479]
[1641614141614,90.37917958,139.06,138.96,27.66479]
[1641614141815,4.0,139.05,138.96,75.62879]
[1641614142014,15.22908958,139.06,138.96,75.62879]
[1641614142212,4.0,139.04,138.96,75.62879]
[1641614143014,4.0,139.04,138.97,15.22908958]
[1641614143314,26.41712868,139.09,138.97,23.12916277]
[1641614143315,4.0,139.0,138.97,23.12916277]
[1641614143515,9.388,139.0,138.97,23.12916277]
[1641614143715,5.388,139.0,138.97,23.12916277]
[1641614143915,5.388,139.0,138.97,15.22908958]
[1641614144118,5.388,139.0,138.96,55.32958]
[1641614145616,11.281,139.04,138.96,55.32958]
[1641614146317,4.0,139.0,138.96,55.32958]
[1641614146617,4.0,139.04,138.96,55.32958]
[1641614147120,4.0,139.0,138.96,55.32958]
[1641614149024,6.006,139.03,138.96,55.32958]
[1641614149423,4.0,139.02,138.99,27.66479]
[1641614149626,50.5382,139.05,138.99,27.66479]
[1641614150125,4.0,139.01,138.99,27.66479]
[1641614153129,4.0,139.01,138.95,67.38048958]
[1641614153330,4.0,139.01,138.95,15.22908958]
[1641614153731,4.0,139.01,139.0,27.66479]
[1641614154134,4.0,139.01,138.98,27.66479]
[1641614154333,7.652,139.03,138.98,27.66479]
[1641614154534,4.0,138.99,138.98,27.66479]
[1641614155536,8.879,138.99,138.98,27.66479]
[1641614156336,4.879,138.99,138.98,27.66479]
[1641614156536,50.5382,139.05,138.98,27.66479]
[1641614156736,4.0,139.04,138.98,27.66479]
[1641614156936,50.5382,139.05,138.98,27.66479]
[1641614157736,4.0,139.03,139.01,27.66479]
[1641614157936,4.0,139.02,139.01,27.66479]
[1641614158135,4.0,139.02,138.98,27.66479]
[1641614158738,6.784,139.03,138.98,27.66479]
[1641614158937,4.0,139.0,138.98,27.66479]
[1641614159136,9.38,139.0,138.98,27.66479]
[1641614160037,5.38,139.0,138.98,27.66479]
[1641614160237,4.0,139.03,138.98,27.66479]
[1641614161138,4.0,139.02,138.98,27.66479]
[1641614161737,50.5382,139.05,138.98,27.66479]
[1641614161938,50.5382,139.05,138.98,33.94579]
[1641614161939,4.0,139.04,138.98,33.94579]
[1641614162137,65.76728958,139.05,138.98,33.94579]
[1641614162639,15.22908958,139.05,138.98,33.94579]
[1641614163038,15.22908958,139.05,139.0,7.18494036]
[1641614163639,8.958e-05,139.05,139.0,7.18494036]
[1641614163838,4.0,139.09,139.04,27.66479]
[1641614164042,8.958e-05,139.1,139.04,34.48379]
[1641614164839,50.3339,139.11,139.04,34.48379]
[1641614166240,4.0,139.1,139.04,34.48379]
[1641614166441,4.0,139.11,139.05,7.18236012]
[1641614166641,40.36308511,139.16,139.05,7.18236012]
[1641614166841,4.0,139.11,139.05,59.82836012]
[1641614167041,4.0,139.11,139.05,7.18236012]
[1641614167441,4.0,139.1,139.05,7.18236012]
[1641614167844,7.721,139.12,139.05,7.18236012]
[1641614168040,4.0,139.14,139.07,27.66479]
[1641614168242,77.78429,139.15,139.07,27.66479]
[1641614168442,4.0,139.12,139.07,27.66479]
[1641614168844,50.1195,139.15,139.07,27.66479]
[1641614169244,4.0,139.13,139.07,27.66479]
[1641614169446,50.1195,139.15,139.07,27.66479]
[1641614169845,4.0,139.13,139.07,27.66479]
[1641614170045,50.1195,139.15,139.07,27.66479]
[1641614170245,50.1195,139.15,139.07,61.12858]
[1641614170946,4.0,139.13,139.07,61.12858]
[1641614171546,50.1195,139.15,139.07,61.12858]
[1641614171747,4.0,139.11,139.07,61.12858]
[1641614174054,56.1055,139.15,139.07,61.12858]
[1641614174754,4.0,139.13,139.07,61.12858]
[1641614174956,54.1195,139.15,139.07,61.12858]
[1641614175157,54.1195,139.15,139.07,68.3096507]
[1641614175958,4.0,139.13,139.07,68.3096507]
[1641614176357,4.0,139.1,139.07,40.6448607]
[1641614177057,50.1195,139.15,139.07,40.6448607]
[1641614177357,4.0,139.12,139.07,40.6448607]
[1641614177559,4.0,139.09,139.07,27.66479]
[1641614177958,4.0,139.1,139.07,27.66479]
[1641614178160,11.178,139.13,139.07,27.66479]
[1641614178358,11.178,139.13,139.1,27.66479]
[1641614178759,4.0,139.13,139.1,27.66479]
[1641614179860,50.1195,139.15,139.1,27.66479]
[1641614180060,4.0,139.12,139.07,27.66479]
[1641614180262,6.823,139.12,139.07,27.66479]
[1641614180965,10.823,139.12,139.07,27.66479]
[1641614182665,6.823,139.12,139.07,27.66479]
[1641614182867,4.0,139.11,139.07,27.66479]
[1641614183366,4.0,139.11,139.06,7.18158641]
[1641614183668,6.823,139.12,139.06,7.18158641]
[1641614183866,4.0,139.14,139.06,7.18158641]
[1641614184768,4.0,139.12,139.11,27.66479]
[1641614185367,50.1195,139.15,139.11,27.66479]
[1641614185568,4.0,139.18,139.11,27.66479]
[1641614186768,4.0,139.12,139.08,52.6118]
[1641614186968,4.0,139.12,139.06,7.18158641]
[1641614187268,4.0,139.12,139.09,27.66479]
[1641614189372,4.0,139.1,139.09,27.66479]
[1641614189972,4.0,139.1,139.07,27.66479]
[1641614190176,8.886,139.13,139.07,27.66479]
[1641614190373,4.0,139.09,139.07,27.66479]
[1641614190572,4.937,139.1,139.07,27.66479]
[1641614191673,4.0,139.11,139.07,27.66479]
[1641614191873,4.0,139.11,139.08,1.69596127]
[1641614193474,50.5676,139.12,139.08,1.69596127]
[1641614193675,50.5676,139.12,139.05,7.18236012]
[1641614193874,50.5676,139.12,139.08,27.66479]
[1641614194076,4.0,139.12,139.08,27.66479]
[1641614194478,4.0,139.11,139.08,27.66479]
[1641614194976,46.4771,139.14,139.08,27.66479]
[1641614195177,4.0,139.12,139.09,1.69776215]
[1641614195377,46.4771,139.14,139.09,1.69776215]
[1641614195577,4.0,139.13,139.09,1.69776215]
[1641614195978,7.3944684,139.13,139.09,1.69776215]
[1641614196878,6.476,139.13,139.09,1.69776215]
[1641614197079,4.0,139.11,139.09,1.69776215]
[1641614197278,6.476,139.13,139.09,1.69776215]
[1641614197579,4.0,139.1,139.09,1.69776215]
[1641614197783,11.652,139.1,139.09,1.69776215]
[1641614198578,12.74591942,139.1,139.08,5.09391942]
[1641614201080,4.0,139.12,139.07,16.97015894]
[1641614201784,4.0,139.12,139.1,5.09248329]
[1641614201982,4.0,139.11,139.1,5.09248329]
[1641614202283,52.4041,139.14,139.1,5.09248329]
[1641614202582,4.0,139.11,139.1,5.09248329]
[1641614202785,4.0,139.11,139.07,24.8951849]
[1641614203483,4.0,139.11,139.1,5.09262011]
[1641614204085,4.0,139.12,139.1,5.09262011]
[1641614204285,9.09295435,139.12,139.07,24.8951849]
[1641614204683,5.09295435,139.12,139.07,24.8951849]
[1641614204985,5.09295435,139.12,139.08,7.18055506]
[1641614205184,5.09287481,139.13,139.1,5.09287481]
[1641614205383,5.09287481,139.13,139.12,7.1787509]
[1641614205584,5.09287481,139.13,139.12,13.3787509]
[1641614205784,7.481e-05,139.13,139.12,13.3787509]
[1641614206084,4.0,139.15,139.12,41.0435409]
[1641614206484,4.0,139.15,139.12,42.74130305]
[1641614207788,42.47751445,139.18,139.13,1.69776215]
[1641614208290,42.47751445,139.18,139.12,41.0435409]
[1641614209492,42.47751445,139.18,139.13,1.69652506]
[1641614210992,42.47751445,139.18,139.12,27.66479]
[1641614212997,50.12451445,139.18,139.12,27.66479]
[1641614214097,50.12451445,139.18,139.1,7.17978173]
[1641614215203,50.12451445,139.18,139.11,1.69480513]
[1641614215602,50.12451445,139.18,139.12,27.66479]
[1641614216302,54.12451445,139.18,139.11,1.69480513]
[1641614216703,4.0,139.17,139.11,1.69480513]
[1641614216902,4.0,139.15,139.08,62.17459679]
[1641614217102,4.762,139.15,139.08,15.27239679]
[1641614217303,8.762,139.15,139.08,15.27239679]
[1641614217706,36.42679,139.15,139.08,29.35908963]
[1641614218306,32.42679,139.15,139.08,29.35908963]
[1641614218907,3.38550184,139.14,139.08,27.66479]
[1641614221112,7.38550184,139.17,139.09,1.6942963]
[1641614221413,3.38550184,139.17,139.09,1.6942963]
[1641614221612,3.38550184,139.17,139.09,8.2492963]
[1641614222013,3.38550184,139.16,139.09,8.2492963]
[1641614222817,3.38550184,139.16,139.08,27.66479]
[1641614223112,3.38550184,139.16,139.07,7.18132855]
[1641614223412,3.38550184,139.16,139.09,1.69465777]
[1641614223715,3.38550184,139.16,139.09,29.35944777]
[1641614224213,3.38550184,139.16,139.07,7.18132855]
[1641614224816,3.38550184,139.16,139.08,1.69492975]
[1641614225218,3.38550184,139.16,139.08,5.69492975]
[1641614225421,3.38550184,139.16,139.09,4.0]
[1641614225617,3.38550184,139.16,139.12,27.66479]
[1641614225818,3.38550184,139.16,139.12,32.51779]
[1641614226620,42.47751445,139.18,139.12,32.51779]
[1641614227019,46.47751445,139.18,139.12,32.51779]
[1641614227220,42.47751445,139.18,139.12,27.66479]
[1641614227820,31.05072514,139.17,139.12,27.66479]
[1641614228021,35.89972514,139.17,139.12,27.66479]
[1641614228620,32.51379,139.17,139.12,27.66479]
[1641614229521,3.38700577,139.16,139.12,27.66479]
[1641614230626,3.38700577,139.17,139.12,27.66479]
[1641614232226,57.74991124,139.18,139.12,27.66479]
[1641614232426,42.47751445,139.18,139.13,1.69660902]
[1641614236429,46.93718679,139.2,139.13,1.69660902]
[1641614236430,42.93718679,139.2,139.13,1.69660902]
[1641614237233,3.38771576,139.19,139.13,1.69660902]
[1641614238034,4.0,139.18,139.13,1.69660902]
[1641614238737,10.634,139.18,139.13,1.69660902]
[1641614239535,10.634,139.18,139.12,27.66479]
[1641614239736,3.38850216,139.17,139.12,27.66479]
[1641614241136,3.38850216,139.17,139.08,67.33360966]
[1641614241336,49.04260216,139.17,139.08,67.33360966]
[1641614241936,49.04260216,139.17,139.11,27.66479]
[1641614242236,3.38850216,139.16,139.11,27.66479]
[1641614242637,3.38850216,139.16,139.09,1.69684247]
[1641614243138,3.38850216,139.16,139.08,67.33360966]
[1641614243637,3.38850216,139.16,139.09,1.69692868]
[1641614244038,3.38850216,139.16,139.11,27.66479]
[1641614244639,3.38850216,139.16,139.11,34.84405628]
[1641614244838,3.38850216,139.16,139.11,41.79905628]
[1641614245540,49.59860216,139.18,139.12,1.69692868]
[1641614246442,3.38850216,139.17,139.12,1.69692868]
[1641614246739,10.51250216,139.17,139.12,1.69692868]
[1641614247239,7.124,139.17,139.12,1.69692868]
[1641614249645,3.39043871,139.16,139.12,1.69692868]
[1641614250442,3.39043871,139.17,139.12,1.69692868]
[1641614255952,3.39043871,139.17,139.12,29.36171868]
[1641614256652,3.39043871,139.17,139.13,1.69692868]
[1641614257353,3.39043871,139.19,139.13,1.69692868]
[1641614259955,3.39043871,139.19,139.13,8.98992868]
[1641614260156,3.39043871,139.19,139.14,7.17772036]
[1641614260556,3.39043871,139.19,139.13,8.98992868]
[1641614261457,3.39043871,139.19,139.16,139.32778622]
[1641614261656,40.36308511,139.23,139.18,7.17540272]
[1641614261857,15.26896238,139.21,139.18,7.17540272]
[1641614262056,15.26896238,139.21,139.2,27.66479]
[1641614262256,15.26896238,139.21,139.2,35.11779]
[1641614262957,40.36308511,139.24,139.2,35.11779]
[1641614263157,88.39583964,139.28,139.2,35.11779]
[1641614263356,74.88779,139.28,139.2,35.11779]
[1641614264758,47.223,139.28,139.2,7.453]
[1641614264958,51.223,139.28,139.18,7.17540272]
[1641614265158,58.879,139.28,139.18,7.17540272]
[1641614265357,4.0,139.27,139.18,7.17540272]
[1641614265560,4.0,139.26,139.18,7.17540272]
[1641614265759,4.0,139.26,139.16,186.58728622]
[1641614266160,27.66479,139.25,139.16,214.25207622]
[1641614266363,45.0105,139.24,139.16,214.25207622]
[1641614266562,5.07576972,139.22,139.17,5.07576972]
[1641614266762,11.15676972,139.22,139.17,5.07576972]
[1641614267565,6.081,139.22,139.17,5.07576972]
[1641614269065,6.081,139.22,139.16,191.66305594]
[1641614270069,6.081,139.22,139.16,219.32784594]
[1641614270566,6.081,139.22,139.16,80.00005972]
[1641614270967,6.081,139.22,139.16,32.74055972]
[1641614271366,10.081,139.22,139.16,32.74055972]
[1641614271968,9.07125033,139.21,139.16,27.66479]
[1641614272569,5.07125033,139.21,139.16,27.66479]
[1641614273476,5.07125033,139.2,139.16,27.66479]
[1641614273676,5.07125033,139.2,139.14,32.74055972]
[1641614274276,32.73604033,139.2,139.14,32.74055972]
[1641614275981,5.07125033,139.2,139.14,32.74055972]
[1641614277880,5.07125033,139.2,139.14,27.66479]
[1641614278685,5.07125033,139.19,139.14,27.66479]
[1641614281991,5.07125033,139.19,139.14,32.74055972]
[1641614283392,52.54565033,139.2,139.14,32.74055972]
[1641614284796,5.07125033,139.2,139.14,32.74055972]
[1641614284994,5.07125033,139.19,139.14,32.74055972]
[1641614285993,5.07125033,139.22,139.17,5.07576972]
[1641614286195,5.07125033,139.22,139.17,12.21076972]
[1641614286597,5.07125033,139.22,139.17,39.87555972]
[1641614286997,5.07125033,139.23,139.18,5.07576972]
[1641614287997,5.07125033,139.21,139.17,5.07576972]
[1641614291506,5.07125033,139.21,139.15,5.07576972]
[1641614291707,5.07125033,139.19,139.15,5.07576972]
[1641614292407,5.07125033,139.2,139.16,5.07576972]
[1641614293206,5.07125033,139.2,139.16,12.11476972]
[1641614293909,5.07125033,139.19,139.17,5.07576972]
[1641614294709,5.07125033,139.19,139.16,5.07576972]
[1641614297212,5.07125033,139.19,139.15,27.66479]
[1641614297213,5.07125033,139.2,139.17,5.07576972]
[1641614297614,5.07125033,139.2,139.17,12.25168734]
[1641614297813,15.2501178,139.23,139.19,34.83916314]
[1641614298012,15.2501178,139.23,139.19,40.58016314]
[1641614298013,1.78e-05,139.23,139.19,40.58016314]
[1641614298213,40.36308511,139.26,139.22,7.17308658]
[1641614298415,40.36308511,139.26,139.23,4.0]
[1641614298713,39.50308511,139.26,139.23,4.0]
[1641614298913,60.73104964,139.31,139.25,7.17180048]
[1641614299114,60.73104964,139.31,139.25,13.05780048]
[1641614299314,60.73104964,139.31,139.26,4.0]
[1641614299514,60.73104964,139.31,139.25,13.05780048]
[1641614299718,15.23019338,139.32,139.28,4.0]
[1641614299913,15.23019338,139.32,139.3,27.66479]
[1641614300313,13.53019338,139.32,139.3,27.66479]
[1641614300513,5.85019338,139.32,139.3,27.66479]
[1641614301116,136.49253964,139.4,139.3,27.66479]
[1641614301315,12.37588774,139.39,139.3,27.66479]
[1641614302017,4.0,139.36,139.3,27.66479]
[1641614302216,4.0,139.37,139.3,27.66479]
[1641614302414,4.0,139.38,139.3,27.66479]
[1641614302616,4.0,139.35,139.3,27.66479]
[1641614303216,4.0,139.36,139.3,27.66479]
[1641614303418,4.0,139.37,139.3,27.66479]
[1641614303919,44.0967,139.4,139.26,16.84528617]
[1641614304121,12.32261656,139.39,139.28,7.17051484]
[1641614304319,12.32261656,139.39,139.29,27.66479]
[1641614304522,12.32261656,139.39,139.29,35.33579]
[1641614305019,7.3530964,139.39,139.29,35.33579]
[1641614305721,4.0,139.39,139.29,35.33579]
[1641614306523,4.0,139.39,139.29,7.671]
[1641614306721,48.0967,139.4,139.28,7.17051484]
[1641614306921,48.0967,139.4,139.29,6.442]
[1641614307123,75.76149,139.4,139.3,27.66479]
[1641614307622,4.0,139.39,139.3,27.66479]
[1641614308625,4.0,139.39,139.28,7.17051484]
[1641614309125,4.0,139.39,139.3,27.66479]
[1641614309326,75.76149,139.4,139.3,27.66479]
[1641614310730,31.66479,139.4,139.3,34.81979]
[1641614310929,27.66479,139.42,139.34,7.16717434]
[1641614311129,10.98,139.48,139.41,27.66479]
[1641614311330,133.2332,139.49,139.41,42.58562695]
[1641614311631,90.0,139.49,139.41,42.58562695]
[1641614311830,64.73104964,139.5,139.41,42.58562695]
[1641614312029,27.66479,139.51,139.41,42.58562695]
[1641614312231,51.386,139.52,139.41,42.58562695]
[1641614313029,4.07198574,139.51,139.41,42.58562695]
[1641614313229,4.07198574,139.51,139.44,27.66479]
[1641614313430,4.07198574,139.51,139.44,33.49279]
[1641614313635,8.07198574,139.51,139.44,5.828]
[1641614313833,4.0,139.47,139.36,11.16614712]